[Event "Fast Chess"]
[Site "ChessKid.com"]
[Date "2020.04.15"]
[Round "4"]
[White "Li, Tobias"]
[Black "Hlinka, Patricia"]
[Result "1-0"]
[ECO "C41"]
[WhiteElo "1251"]
[BlackElo "950"]
[PlyCount "91"]
[EventDate "2020.??.??"]
[TimeControl "900"]
[WhiteClock "0:08:51"]
[BlackClock "0:10:05"]

1. e4 {[%emt 0:00:00]} e5 {[%emt 0:00:01]} 2. Nf3 {[%emt 0:00:02]} d6 {[%emt 0:
00:03]} 3. Nc3 {[%emt 0:00:08]} Na6 {[%emt 0:00:07]} 4. Be2 {[%emt 0:00:10]}
Nh6 {[%emt 0:00:05]} 5. O-O {[%emt 0:00:02]} Bd7 {[%emt 0:00:06]} 6. h3 {
[%emt 0:00:08]} g6 {[%emt 0:00:06]} 7. d3 {[%emt 0:00:09]} Rc8 {[%emt 0:00:08]}
8. Be3 {[%emt 0:00:05]} Ra8 {[%emt 0:00:14]} 9. d4 {[%emt 0:00:19]} Bg7 {
[%emt 0:00:00]} 10. dxe5 {[%emt 0:00:01]} dxe5 {[%emt 0:00:03]} 11. Bxh6 {
[%emt 0:00:03]} Bxh6 {[%emt 0:00:07]} 12. Nxe5 {[%emt 0:00:01]} Bc8 {[%emt 0:
00:06]} 13. Qxd8+ {[%emt 0:00:04]} Kxd8 {[%emt 0:00:03]} 14. Nxf7+ {[%emt 0:00:
01]} Ke8 {[%emt 0:00:03]} 15. Nxh8 {[%emt 0:00:02]} Bd7 {[%emt 0:00:03]} 16.
Bc4 {[%emt 0:00:05]} Rb8 {[%emt 0:00:08]} 17. Nf7 {[%emt 0:00:04]} Bf8 {
[%emt 0:00:14]} 18. Rfe1 {[%emt 0:00:08]} Rc8 {[%emt 0:00:10]} 19. Ne5 {
[%emt 0:00:10]} Be6 {[%emt 0:00:28]} 20. Nd7 {[%emt 0:00:00]} Bxc4 {[%emt 0:00:
06]} 21. Ne5 {[%emt 0:00:06]} Bg8 {[%emt 0:00:07]} 22. Nf3 {[%emt 0:00:42]} g5
{[%emt 0:00:04]} 23. Nxg5 {[%emt 0:00:04]} Nb8 {[%emt 0:00:09]} 24. e5 {
[%emt 0:00:10]} a5 {[%emt 0:00:08]} 25. e6 {[%emt 0:00:05]} h6 {[%emt 0:00:11]}
26. Nge4 {[%emt 0:00:14]} Bxe6 {[%emt 0:00:07]} 27. Nc5 {[%emt 0:00:03]} Rd8 {
[%emt 0:00:32]} 28. Rxe6+ {[%emt 0:00:07]} Kf7 {[%emt 0:00:06]} 29. Nxb7 {
[%emt 0:00:04]} Rc8 {[%emt 0:00:06]} 30. Ree1 {[%emt 0:00:07]} h5 {[%emt 0:00:
07]} 31. Nd5 {[%emt 0:00:12]} c6 {[%emt 0:00:14]} 32. Nc3 {[%emt 0:00:07]} c5 {
[%emt 0:00:03]} 33. Nxa5 {[%emt 0:00:03]} Na6 {[%emt 0:00:11]} 34. g4 {[%emt 0:
00:07]} h4 {[%emt 0:00:05]} 35. a3 {[%emt 0:00:09]} Nb8 {[%emt 0:00:05]} 36. b4
{[%emt 0:00:02]} cxb4 {[%emt 0:00:11]} 37. axb4 {[%emt 0:00:01]} Rxc3 {[%emt 0:
00:03]} 38. Red1 {[%emt 0:00:16]} Bxb4 {[%emt 0:00:13]} 39. Rd8 {[%emt 0:00:08]
} Bxa5 {[%emt 0:00:16]} 40. Rxb8 {[%emt 0:00:06]} Bc7 {[%emt 0:00:07]} 41. Rb7
{[%emt 0:00:03]} Ke6 {[%emt 0:00:09]} 42. Ra6+ {[%emt 0:00:05]} Kd7 {[%emt 0:
00:06]} 43. Raa7 {[%emt 0:00:04]} Rxh3 {[%emt 0:00:24]} 44. Rxc7+ {[%emt 0:00:
02]} Kd8 {[%emt 0:00:03]} 45. Rh7 {[%emt 0:00:03]} Kc8 {[%emt 0:00:03]} 46.
Ra8# {[%emt 0:00:02] OnlyHungryKiwi won by checkmate} 1-0

[Event "Fast Chess"]
[Site "ChessKid.com"]
[Date "2020.04.15"]
[Round "4"]
[White "Hlinka, Patrick"]
[Black "Li, Patrick"]
[Result "1-0"]
[ECO "C23"]
[WhiteElo "1102"]
[BlackElo "987"]
[PlyCount "27"]
[EventDate "2020.??.??"]
[TimeControl "900"]
[WhiteClock "0:12:44"]
[BlackClock "0:13:08"]

1. e4 {[%emt 0:00:00]} e5 {[%emt 0:00:04]} 2. Bc4 {[%emt 0:00:02]} Qh4 {
[%emt 0:00:06]} 3. g3 {[%emt 0:00:08]} Qxe4+ {[%emt 0:00:09]} 4. Qe2 {[%emt 0:
00:06]} Qxh1 {[%emt 0:00:05]} 5. Qh5 {[%emt 0:00:13]} d5 {[%emt 0:00:28]} 6.
Bxd5 {[%emt 0:00:06]} Qxd5 {[%emt 0:00:06]} 7. Nc3 {[%emt 0:00:10]} g6 {
[%emt 0:00:05]} 8. Qe2 {[%emt 0:00:23]} Qd6 {[%emt 0:00:13]} 9. Nb5 {[%emt 0:
00:07]} Qc5 {[%emt 0:00:08]} 10. b4 {[%emt 0:00:13]} Qb6 {[%emt 0:00:16]} 11.
Qxe5+ {[%emt 0:00:07]} Qe6 {[%emt 0:00:13]} 12. Nxc7+ {[%emt 0:00:11]} Kd7 {
[%emt 0:00:17]} 13. Nxe6 {[%emt 0:00:04]} fxe6 {[%emt 0:00:06]} 14. Qxh8 {
[%emt 0:00:02] GoldMusicalTaxi won by resignation} 1-0

[Event "Fast Chess"]
[Site "ChessKid.com"]
[Date "2020.04.16"]
[Round "1"]
[White "Georgiev, Maximilian"]
[Black "Li, Tobias"]
[Result "0-1"]
[ECO "C50"]
[WhiteElo "1384"]
[BlackElo "1266"]
[PlyCount "182"]
[EventDate "2020.??.??"]
[TimeControl "300+10"]
[WhiteClock "0:00:02"]
[BlackClock "0:02:23"]

1. e4 {[%emt 0:00:09]} e5 {[%emt 0:00:20]} 2. Nf3 {[%emt 0:00:10]} Nc6 {
[%emt 0:00:13]} 3. Bc4 {[%emt 0:00:10]} h6 {[%emt 0:00:13]} 4. O-O {[%emt 0:00:
11]} Nf6 {[%emt 0:00:15]} 5. Nc3 {[%emt 0:00:10]} Bc5 {[%emt 0:00:12]} 6. h3 {
[%emt 0:00:13]} O-O {[%emt 0:00:10]} 7. a3 {[%emt 0:00:11]} a6 {[%emt 0:00:18]}
8. d3 {[%emt 0:00:10]} d6 {[%emt 0:00:16]} 9. Be3 {[%emt 0:00:11]} Bxe3 {
[%emt 0:00:13]} 10. fxe3 {[%emt 0:00:10]} Re8 {[%emt 0:00:18]} 11. b4 {[%emt 0:
00:15]} Be6 {[%emt 0:00:13]} 12. Bxe6 {[%emt 0:00:11]} Rxe6 {[%emt 0:00:16]}
13. b5 {[%emt 0:00:12]} Na5 {[%emt 0:00:14]} 14. bxa6 {[%emt 0:00:12]} Rxa6 {
[%emt 0:00:14]} 15. Qe1 {[%emt 0:00:12]} Rb6 {[%emt 0:00:14]} 16. Nd5 {[%emt 0:
00:12]} Rb2 {[%emt 0:00:23]} 17. Nxf6+ {[%emt 0:00:15]} Rxf6 {[%emt 0:00:13]}
18. Qxa5 {[%emt 0:00:12]} Rxc2 {[%emt 0:00:16]} 19. Qe1 {[%emt 0:00:12]} Rg6 {
[%emt 0:00:23]} 20. Rf2 {[%emt 0:00:12]} Rxf2 {[%emt 0:00:19]} 21. Qxf2 {
[%emt 0:00:10]} c5 {[%emt 0:00:16]} 22. d4 {[%emt 0:00:14]} Qa5 {[%emt 0:00:13]
} 23. dxc5 {[%emt 0:00:13]} Qxc5 {[%emt 0:00:27]} 24. Nh4 {[%emt 0:00:17]} Qc3
{[%emt 0:00:18]} 25. Nxg6 {[%emt 0:00:14]} Qxa1+ {[%emt 0:00:14]} 26. Kh2 {
[%emt 0:00:10]} fxg6 {[%emt 0:00:13]} 27. g4 {[%emt 0:00:14]} Qxa3 {[%emt 0:00:
15]} 28. h4 {[%emt 0:00:12]} g5 {[%emt 0:00:12]} 29. h5 {[%emt 0:00:12]} Qa6 {
[%emt 0:00:23]} 30. Qg2 {[%emt 0:00:17]} Qd3 {[%emt 0:00:18]} 31. Qa2+ {
[%emt 0:00:12]} Kh7 {[%emt 0:00:14]} 32. Qa7 {[%emt 0:00:18]} Qxe4 {[%emt 0:00:
18]} 33. Qb8 {[%emt 0:00:17]} Qxe3 {[%emt 0:00:22]} 34. Qxb7 {[%emt 0:00:12]}
Qf4+ {[%emt 0:00:20]} 35. Kh3 {[%emt 0:00:12]} e4 {[%emt 0:00:33]} 36. Qb1 {
[%emt 0:00:22]} Qf3+ {[%emt 0:00:15]} 37. Kh2 {[%emt 0:00:14]} Kg8 {[%emt 0:00:
18]} 38. Qa2+ {[%emt 0:00:17]} Kh8 {[%emt 0:00:12]} 39. Qa8+ {[%emt 0:00:13]}
Kh7 {[%emt 0:00:13]} 40. Qe8 {[%emt 0:00:13]} e3 {[%emt 0:00:15]} 41. Qg6+ {
[%emt 0:00:11]} Kg8 {[%emt 0:00:12]} 42. Qe8+ {[%emt 0:00:12]} Kh7 {[%emt 0:00:
12]} 43. Qg6+ {[%emt 0:00:11]} Kg8 {[%emt 0:00:14]} 44. Qb1 {[%emt 0:00:13]} e2
{[%emt 0:00:12]} 45. Qe1 {[%emt 0:00:11]} d5 {[%emt 0:00:14]} 46. Kg1 {[%emt 0:
00:13]} d4 {[%emt 0:00:21]} 47. Kh2 {[%emt 0:00:22]} d3 {[%emt 0:00:10]} 48.
Kg1 {[%emt 0:00:12]} d2 {[%emt 0:00:11]} 49. Qxd2 {[%emt 0:00:10]} Qf1+ {
[%emt 0:00:16]} 50. Kh2 {[%emt 0:00:11]} e1=Q {[%emt 0:00:12]} 51. Qxe1 {
[%emt 0:00:11]} Qxe1 {[%emt 0:00:11]} 52. Kg2 {[%emt 0:00:10]} Qe2+ {[%emt 0:
00:11]} 53. Kg3 {[%emt 0:00:11]} Qe3+ {[%emt 0:00:11]} 54. Kh2 {[%emt 0:00:10]}
Qd2+ {[%emt 0:00:12]} 55. Kg1 {[%emt 0:00:11]} Qb2 {[%emt 0:00:11]} 56. Kf1 {
[%emt 0:00:10]} Qa2 {[%emt 0:00:10]} 57. Ke1 {[%emt 0:00:10]} Qa1+ {[%emt 0:00:
10]} 58. Ke2 {[%emt 0:00:10]} Qa2+ {[%emt 0:00:10]} 59. Kd3 {[%emt 0:00:10]}
Qa1 {[%emt 0:00:10]} 60. Ke4 {[%emt 0:00:10]} Qb2 {[%emt 0:00:10]} 61. Kd5 {
[%emt 0:00:10]} Qd2+ {[%emt 0:00:10]} 62. Kc4 {[%emt 0:00:10]} Qe3 {[%emt 0:00:
11]} 63. Kb4 {[%emt 0:00:11]} Qe6 {[%emt 0:00:11]} 64. Kc3 {[%emt 0:00:10]} Qe4
{[%emt 0:00:10]} 65. Kb3 {[%emt 0:00:12]} Qc6 {[%emt 0:00:09]} 66. Kb2 {
[%emt 0:00:10]} Qb7+ {[%emt 0:00:10]} 67. Kc2 {[%emt 0:00:10]} Qa7 {[%emt 0:00:
10]} 68. Kd2 {[%emt 0:00:10]} Qa6 {[%emt 0:00:10]} 69. Kc3 {[%emt 0:00:11]}
Qa5+ {[%emt 0:00:09]} 70. Kd4 {[%emt 0:00:10]} Qa6 {[%emt 0:00:09]} 71. Ke5 {
[%emt 0:00:10]} Qa7 {[%emt 0:00:11]} 72. Kd5 {[%emt 0:00:10]} Qb7+ {[%emt 0:00:
11]} 73. Kc4 {[%emt 0:00:10]} Qa8 {[%emt 0:00:10]} 74. Kd3 {[%emt 0:00:10]} Qc8
{[%emt 0:00:10]} 75. Ke3 {[%emt 0:00:11]} Qc7 {[%emt 0:00:10]} 76. Kd4 {
[%emt 0:00:10]} Qc6 {[%emt 0:00:10]} 77. Ke3 {[%emt 0:00:11]} Qa8 {[%emt 0:00:
10]} 78. Kd2 {[%emt 0:00:10]} Qa5+ {[%emt 0:00:10]} 79. Kc2 {[%emt 0:00:10]}
Qc5+ {[%emt 0:00:10]} 80. Kb3 {[%emt 0:00:10]} Qd5+ {[%emt 0:00:10]} 81. Kb4 {
[%emt 0:00:10]} Qe6 {[%emt 0:00:10]} 82. Kc5 {[%emt 0:00:11]} Qe7+ {[%emt 0:00:
09]} 83. Kd4 {[%emt 0:00:11]} Qd7+ {[%emt 0:00:11]} 84. Ke3 {[%emt 0:00:10]}
Qc6 {[%emt 0:00:10]} 85. Kf2 {[%emt 0:00:10]} Qc4 {[%emt 0:00:10]} 86. Ke3 {
[%emt 0:00:11]} Qc3+ {[%emt 0:00:10]} 87. Ke4 {[%emt 0:00:10]} Qb3 {[%emt 0:00:
11]} 88. Kf5 {[%emt 0:00:10]} Qc3 {[%emt 0:00:10]} 89. Ke6 {[%emt 0:00:11]} Qd4
{[%emt 0:00:10]} 90. Kf5 {[%emt 0:00:12]} Qd5+ {[%emt 0:00:11]} 91. Kg6 {
[%emt 0:00:12]} Qf7# {[%emt 0:00:10] OnlyHungryKiwi won by checkmate} 0-1

[Event "Fast Chess"]
[Site "ChessKid.com"]
[Date "2020.04.16"]
[Round "1"]
[White "Hlinka, Patrick"]
[Black "Horvath, Alexander"]
[Result "0-1"]
[ECO "C20"]
[WhiteElo "1118"]
[BlackElo "1301"]
[PlyCount "36"]
[EventDate "2020.??.??"]
[TimeControl "300+10"]
[WhiteClock "0:03:46"]
[BlackClock "0:03:00"]

1. e4 {[%emt 0:00:13]} e5 {[%emt 0:00:11]} 2. Bc4 {[%emt 0:00:18]} Nc6 {
[%emt 0:00:11]} 3. Qh5 {[%emt 0:00:23]} g6 {[%emt 0:00:11]} 4. Qf3 {[%emt 0:00:
12]} Nf6 {[%emt 0:00:11]} 5. d3 {[%emt 0:00:11]} Nd4 {[%emt 0:00:11]} 6. Qd1 {
[%emt 0:00:27]} d6 {[%emt 0:00:16]} 7. Bg5 {[%emt 0:00:17]} Be7 {[%emt 0:00:25]
} 8. Bxf6 {[%emt 0:00:17]} Bxf6 {[%emt 0:00:12]} 9. c3 {[%emt 0:00:27]} Nc6 {
[%emt 0:00:13]} 10. Bd5 {[%emt 0:00:17]} O-O {[%emt 0:00:16]} 11. Bxc6 {
[%emt 0:00:13]} bxc6 {[%emt 0:00:12]} 12. d4 {[%emt 0:00:11]} exd4 {[%emt 0:00:
19]} 13. cxd4 {[%emt 0:00:11]} Re8 {[%emt 0:00:11]} 14. f3 {[%emt 0:00:14]} d5
{[%emt 0:00:15]} 15. Qc2 {[%emt 0:00:18]} Bxd4 {[%emt 0:00:14]} 16. a4 {
[%emt 0:00:19]} Ba6 {[%emt 0:00:21]} 17. Qxc6 {[%emt 0:00:15]} Re6 {[%emt 0:00:
14]} 18. Qxd5 {[%emt 0:00:18]} Qxd5 {[%emt 0:00:12] KeenOrangeTeeth won by
resignation} 0-1

[Event "Fast Chess"]
[Site "ChessKid.com"]
[Date "2020.04.16"]
[Round "1"]
[White "Dai, Lana"]
[Black "Li, Patrick"]
[Result "0-1"]
[ECO "C55"]
[WhiteElo "1258"]
[BlackElo "1062"]
[PlyCount "96"]
[EventDate "2020.??.??"]
[TimeControl "300+10"]
[WhiteClock "0:01:27"]

1. e4 {[%emt 0:00:11]} e5 {[%emt 0:00:11]} 2. Nf3 {[%emt 0:00:11]} Nc6 {
[%emt 0:00:14]} 3. Nc3 {[%emt 0:00:11]} Nf6 {[%emt 0:00:11]} 4. Bc4 {[%emt 0:
00:10]} Bc5 {[%emt 0:00:12]} 5. a3 {[%emt 0:00:13]} a6 {[%emt 0:00:11]} 6. d3 {
[%emt 0:00:10]} b5 {[%emt 0:00:11]} 7. Bd5 {[%emt 0:00:18]} Nxd5 {[%emt 0:00:
13]} 8. Nxd5 {[%emt 0:00:15]} O-O {[%emt 0:00:14]} 9. Bg5 {[%emt 0:00:11]} Qe8
{[%emt 0:00:16]} 10. Nxc7 {[%emt 0:00:13]} Qe6 {[%emt 0:00:12]} 11. Nxe6 {
[%emt 0:00:13]} dxe6 {[%emt 0:00:11]} 12. O-O {[%emt 0:00:16]} h6 {[%emt 0:00:
24]} 13. Bh4 {[%emt 0:00:14]} Nd4 {[%emt 0:00:22]} 14. Nxd4 {[%emt 0:00:14]}
Bxd4 {[%emt 0:00:11]} 15. c3 {[%emt 0:00:12]} Bb6 {[%emt 0:00:13]} 16. Be7 {
[%emt 0:00:11]} Re8 {[%emt 0:00:12]} 17. Bd6 {[%emt 0:00:10]} f6 {[%emt 0:00:
19]} 18. d4 {[%emt 0:00:12]} exd4 {[%emt 0:00:12]} 19. cxd4 {[%emt 0:00:10]}
Rd8 {[%emt 0:00:13]} 20. Be7 {[%emt 0:00:19]} Rd7 {[%emt 0:00:14]} 21. Bb4 {
[%emt 0:00:24]} Bxd4 {[%emt 0:00:14]} 22. Qg4 {[%emt 0:00:29]} Bxb2 {[%emt 0:
00:18]} 23. Ra2 {[%emt 0:00:14]} Be5 {[%emt 0:00:15]} 24. Rd1 {[%emt 0:00:20]}
Rxd1+ {[%emt 0:00:14]} 25. Qxd1 {[%emt 0:00:12]} Bb7 {[%emt 0:00:31]} 26. Re2 {
[%emt 0:00:21]} Bc6 {[%emt 0:00:17]} 27. g3 {[%emt 0:00:25]} Rc8 {[%emt 0:00:
21]} 28. f4 {[%emt 0:00:17]} Bb8 {[%emt 0:00:19]} 29. Bd6 {[%emt 0:00:16]} Ba7+
{[%emt 0:00:14]} 30. Kh1 {[%emt 0:00:19]} Rd8 {[%emt 0:00:16]} 31. Rc2 {
[%emt 0:00:18]} Be8 {[%emt 0:00:16]} 32. Rc7 {[%emt 0:00:18]} Bb8 {[%emt 0:00:
18]} 33. Re7 {[%emt 0:00:46]} Bxd6 {[%emt 0:00:14]} 34. Rxe6 {[%emt 0:00:21]}
Bc7 {[%emt 0:00:22]} 35. Qb3 {[%emt 0:00:22]} Bf7 {[%emt 0:00:19]} 36. f5 {
[%emt 0:00:54]} Bxe6 {[%emt 0:00:16]} 37. Qxe6+ {[%emt 0:00:13]} Kh7 {[%emt 0:
00:13]} 38. Qf7 {[%emt 0:00:18]} Rg8 {[%emt 0:00:12]} 39. Qxc7 {[%emt 0:00:12]}
Re8 {[%emt 0:00:12]} 40. Qd7 {[%emt 0:00:14]} Rxe4 {[%emt 0:00:12]} 41. Qd5 {
[%emt 0:00:13]} Re1+ {[%emt 0:00:12]} 42. Kg2 {[%emt 0:00:10]} Re2+ {[%emt 0:
00:11]} 43. Kf3 {[%emt 0:00:11]} Rc2 {[%emt 0:00:11]} 44. Qe4 {[%emt 0:00:13]}
Rc3+ {[%emt 0:00:12]} 45. Ke2 {[%emt 0:00:13]} Rc8 {[%emt 0:00:12]} 46. Qg4 {
[%emt 0:00:11]} Kg8 {[%emt 0:00:11]} 47. Qg6 {[%emt 0:00:11]} Kf8 {[%emt 0:00:
12]} 48. Qe8+ {[%emt 0:00:11]} Rxe8+ {[%emt 0:00:11] WideClassyQuiz won on time
} 0-1

[Event "Fast Chess"]
[Site "ChessKid.com"]
[Date "2020.04.16"]
[Round "1"]
[White "Hlinka, Patricia"]
[Black "Sasse, Gabriel"]
[Result "0-1"]
[ECO "A40"]
[WhiteElo "943"]
[BlackElo "1259"]
[PlyCount "66"]
[EventDate "2020.??.??"]
[TimeControl "300+10"]
[WhiteClock "0:02:58"]
[BlackClock "0:02:25"]

1. d4 {[%emt 0:00:10]} e5 {[%emt 0:00:10]} 2. dxe5 {[%emt 0:00:11]} Nc6 {
[%emt 0:00:11]} 3. c4 {[%emt 0:00:12]} Nxe5 {[%emt 0:00:11]} 4. b3 {[%emt 0:00:
13]} Qf6 {[%emt 0:00:13]} 5. Qc2 {[%emt 0:00:13]} Bc5 {[%emt 0:00:12]} 6. e4 {
[%emt 0:00:17]} Bb4+ {[%emt 0:00:26]} 7. Kd1 {[%emt 0:00:13]} Qd6+ {[%emt 0:00:
16]} 8. Ke2 {[%emt 0:00:22]} Qd4 {[%emt 0:00:21]} 9. Nh3 {[%emt 0:00:14]} Bc5 {
[%emt 0:00:11]} 10. Bb2 {[%emt 0:00:17]} Qd6 {[%emt 0:00:18]} 11. Bxe5 {
[%emt 0:00:13]} Qxe5 {[%emt 0:00:10]} 12. Nc3 {[%emt 0:00:17]} Bb4 {[%emt 0:00:
12]} 13. Nd1 {[%emt 0:00:15]} Qxa1 {[%emt 0:00:12]} 14. Nb2 {[%emt 0:00:14]}
Qxa2 {[%emt 0:00:16]} 15. c5 {[%emt 0:00:14]} Ba3 {[%emt 0:00:12]} 16. b4 {
[%emt 0:00:18]} Bxb2 {[%emt 0:00:12]} 17. e5 {[%emt 0:00:15]} Qa6+ {[%emt 0:00:
12]} 18. Kf3 {[%emt 0:00:21]} Qa2 {[%emt 0:00:24]} 19. Qe4 {[%emt 0:00:15]} c6
{[%emt 0:00:17]} 20. Ng5 {[%emt 0:00:13]} b6 {[%emt 0:00:15]} 21. cxb6 {
[%emt 0:00:12]} Bb7 {[%emt 0:00:11]} 22. bxa7 {[%emt 0:00:13]} Rxa7 {[%emt 0:
00:12]} 23. Nh3 {[%emt 0:00:20]} c5 {[%emt 0:00:11]} 24. bxc5 {[%emt 0:00:13]}
Bxe4+ {[%emt 0:00:11]} 25. Kxe4 {[%emt 0:00:15]} Qc4+ {[%emt 0:00:11]} 26. Kf5
{[%emt 0:00:13]} Qxc5 {[%emt 0:00:11]} 27. Kg4 {[%emt 0:00:16]} Qxe5 {[%emt 0:
00:11]} 28. Ng5 {[%emt 0:00:15]} Ra4+ {[%emt 0:00:11]} 29. Kh5 {[%emt 0:00:15]}
Ra5 {[%emt 0:00:14]} 30. Kh4 {[%emt 0:00:12]} Qxg5+ {[%emt 0:00:11]} 31. Kh3 {
[%emt 0:00:13]} Ra3+ {[%emt 0:00:11]} 32. f3 {[%emt 0:00:16]} Be5 {[%emt 0:00:
26]} 33. Rg1 {[%emt 0:00:14]} Qh5# {[%emt 0:00:12] LimeFarActor won by
checkmate} 0-1

[Event "Fast Chess"]
[Site "ChessKid.com"]
[Date "2020.04.16"]
[Round "2"]
[White "Horvath, Alexander"]
[Black "Sasse, Gabriel"]
[Result "1-0"]
[ECO "C50"]
[WhiteElo "1314"]
[BlackElo "1252"]
[PlyCount "49"]
[EventDate "2020.??.??"]
[TimeControl "300+10"]
[WhiteClock "0:03:34"]
[BlackClock "0:02:42"]

1. e4 {[%emt 0:00:10]} e5 {[%emt 0:00:10]} 2. Nf3 {[%emt 0:00:13]} Nc6 {
[%emt 0:00:10]} 3. Nc3 {[%emt 0:00:11]} Nf6 {[%emt 0:00:10]} 4. Bc4 {[%emt 0:
00:13]} h6 {[%emt 0:00:10]} 5. d3 {[%emt 0:00:18]} Bc5 {[%emt 0:00:10]} 6. Be3
{[%emt 0:00:12]} Bxe3 {[%emt 0:00:11]} 7. fxe3 {[%emt 0:00:10]} O-O {[%emt 0:
00:12]} 8. Qe2 {[%emt 0:00:13]} Ne8 {[%emt 0:00:13]} 9. O-O-O {[%emt 0:00:11]}
Nb8 {[%emt 0:00:20]} 10. Nxe5 {[%emt 0:00:13]} Qf6 {[%emt 0:00:17]} 11. d4 {
[%emt 0:00:41]} Qg5 {[%emt 0:00:14]} 12. Bxf7+ {[%emt 0:00:16]} Rxf7 {[%emt 0:
00:11]} 13. Nxf7 {[%emt 0:00:11]} Kxf7 {[%emt 0:00:10]} 14. Rhf1+ {[%emt 0:00:
11]} Kg8 {[%emt 0:00:11]} 15. Nd5 {[%emt 0:00:14]} Nc6 {[%emt 0:00:13]} 16. Qc4
{[%emt 0:00:14]} Kh7 {[%emt 0:00:17]} 17. g3 {[%emt 0:00:21]} Nf6 {[%emt 0:00:
11]} 18. Nxf6+ {[%emt 0:00:16]} gxf6 {[%emt 0:00:14]} 19. Qf7+ {[%emt 0:00:12]}
Kh8 {[%emt 0:00:12]} 20. Rxf6 {[%emt 0:00:15]} Qxe3+ {[%emt 0:00:15]} 21. Kb1 {
[%emt 0:00:12]} Nb4 {[%emt 0:00:27]} 22. a3 {[%emt 0:00:41]} Na6 {[%emt 0:00:
20]} 23. Ka2 {[%emt 0:00:17]} Qxe4 {[%emt 0:00:14]} 24. Rxh6+ {[%emt 0:00:13]}
Qh7 {[%emt 0:00:14]} 25. Rxh7# {[%emt 0:00:11] KeenOrangeTeeth won by checkmate
} 1-0

[Event "Fast Chess"]
[Site "ChessKid.com"]
[Date "2020.04.16"]
[Round "2"]
[White "Li, Tobias"]
[Black "Halimi, Dorian"]
[Result "1-0"]
[ECO "C55"]
[WhiteElo "1268"]
[BlackElo "904"]
[PlyCount "41"]
[EventDate "2020.??.??"]
[TimeControl "300+10"]
[WhiteClock "0:03:13"]
[BlackClock "0:03:33"]

1. e4 {[%emt 0:00:09]} e5 {[%emt 0:00:12]} 2. Nf3 {[%emt 0:00:11]} Nc6 {
[%emt 0:00:11]} 3. Nc3 {[%emt 0:00:15]} d6 {[%emt 0:00:10]} 4. Bc4 {[%emt 0:00:
12]} Nf6 {[%emt 0:00:14]} 5. Ng5 {[%emt 0:00:11]} g6 {[%emt 0:00:32]} 6. Nxf7 {
[%emt 0:00:14]} Qe7 {[%emt 0:00:13]} 7. Nxh8 {[%emt 0:00:12]} b5 {[%emt 0:00:
19]} 8. Bxb5 {[%emt 0:00:14]} Bb7 {[%emt 0:00:14]} 9. Bc4 {[%emt 0:00:11]} Nb4
{[%emt 0:00:12]} 10. a3 {[%emt 0:00:12]} Nc6 {[%emt 0:00:15]} 11. O-O {[%emt 0:
00:11]} O-O-O {[%emt 0:00:15]} 12. Nf7 {[%emt 0:00:13]} Ng4 {[%emt 0:00:16]}
13. Qxg4+ {[%emt 0:00:14]} Rd7 {[%emt 0:00:17]} 14. Be6 {[%emt 0:00:31]} Qf6 {
[%emt 0:00:26]} 15. Bxd7+ {[%emt 0:00:12]} Kb8 {[%emt 0:00:13]} 16. Ng5 {
[%emt 0:00:18]} h6 {[%emt 0:00:14]} 17. Nh7 {[%emt 0:00:19]} Bg7 {[%emt 0:00:
12]} 18. Nxf6 {[%emt 0:00:16]} Bxf6 {[%emt 0:00:12]} 19. Qxg6 {[%emt 0:00:21]}
Bg5 {[%emt 0:00:13]} 20. Qe8+ {[%emt 0:00:12]} Bc8 {[%emt 0:00:17]} 21. Qxc8# {
[%emt 0:00:11] OnlyHungryKiwi won by checkmate} 1-0

[Event "Fast Chess"]
[Site "ChessKid.com"]
[Date "2020.04.16"]
[Round "2"]
[White "Hlinka, Patrick"]
[Black "Dai, Lana"]
[Result "0-1"]
[ECO "C20"]
[WhiteElo "1113"]
[BlackElo "1263"]
[PlyCount "44"]
[EventDate "2020.??.??"]
[TimeControl "300+10"]
[WhiteClock "0:02:15"]
[BlackClock "0:01:09"]

1. e4 {[%emt 0:00:09]} e5 {[%emt 0:00:11]} 2. Bc4 {[%emt 0:00:14]} Nc6 {
[%emt 0:00:12]} 3. Qh5 {[%emt 0:00:17]} g6 {[%emt 0:00:18]} 4. Qf3 {[%emt 0:00:
11]} Nf6 {[%emt 0:00:11]} 5. g4 {[%emt 0:00:11]} Nd4 {[%emt 0:00:13]} 6. Qc3 {
[%emt 0:00:14]} Bc5 {[%emt 0:00:23]} 7. b4 {[%emt 0:00:21]} Bb6 {[%emt 0:00:19]
} 8. g5 {[%emt 0:00:21]} Ng4 {[%emt 0:00:18]} 9. Qg3 {[%emt 0:00:22]} Nxc2+ {
[%emt 0:00:23]} 10. Kd1 {[%emt 0:00:26]} Nxa1 {[%emt 0:00:22]} 11. Qxg4 {
[%emt 0:00:17]} d6 {[%emt 0:00:14]} 12. Qf3 {[%emt 0:00:20]} O-O {[%emt 0:00:
35]} 13. Bb2 {[%emt 0:00:25]} Qxg5 {[%emt 0:00:32]} 14. Bxa1 {[%emt 0:00:20]}
Bg4 {[%emt 0:00:18]} 15. Ke2 {[%emt 0:00:35]} Bxf3+ {[%emt 0:00:16]} 16. Kxf3 {
[%emt 0:00:11]} Qh5+ {[%emt 0:00:23]} 17. Kg2 {[%emt 0:00:24]} Qg4+ {[%emt 0:
00:13]} 18. Kf1 {[%emt 0:00:30]} Qd1+ {[%emt 0:00:12]} 19. Kg2 {[%emt 0:01:03]}
Qxb1 {[%emt 0:00:16]} 20. Bc3 {[%emt 0:00:15]} Qxe4+ {[%emt 0:00:14]} 21. f3 {
[%emt 0:00:15]} Qxc4 {[%emt 0:00:14]} 22. Ne2 {[%emt 0:00:11]} Qxe2+ {[%emt 0:
00:11] TopBrownCave won by resignation} 0-1

[Event "Fast Chess"]
[Site "ChessKid.com"]
[Date "2020.04.16"]
[Round "3"]
[White "Li, Tobias"]
[Black "Horvath, Alexander"]
[Result "0-1"]
[ECO "C42"]
[WhiteElo "1261"]
[BlackElo "1326"]
[PlyCount "68"]
[EventDate "2020.??.??"]
[TimeControl "300+10"]
[WhiteClock "0:02:32"]
[BlackClock "0:02:47"]

1. e4 {[%emt 0:00:10]} e5 {[%emt 0:00:11]} 2. Nf3 {[%emt 0:00:11]} Nf6 {
[%emt 0:00:11]} 3. Nxe5 {[%emt 0:00:12]} d6 {[%emt 0:00:11]} 4. Nf3 {[%emt 0:
00:11]} Nxe4 {[%emt 0:00:14]} 5. d3 {[%emt 0:00:11]} Nf6 {[%emt 0:00:12]} 6.
Qe2+ {[%emt 0:00:11]} Be6 {[%emt 0:00:11]} 7. Qd1 {[%emt 0:00:14]} Be7 {
[%emt 0:00:12]} 8. Be2 {[%emt 0:00:10]} O-O {[%emt 0:00:11]} 9. O-O {[%emt 0:
00:10]} Nc6 {[%emt 0:00:14]} 10. Nc3 {[%emt 0:00:10]} d5 {[%emt 0:00:13]} 11.
Bg5 {[%emt 0:00:10]} h6 {[%emt 0:00:20]} 12. Bh4 {[%emt 0:00:12]} Nd7 {[%emt 0:
00:13]} 13. Bxe7 {[%emt 0:00:13]} Qxe7 {[%emt 0:00:10]} 14. d4 {[%emt 0:00:10]}
Nf6 {[%emt 0:00:25]} 15. Bb5 {[%emt 0:00:17]} a6 {[%emt 0:00:17]} 16. Ba4 {
[%emt 0:00:12]} b5 {[%emt 0:00:12]} 17. Bb3 {[%emt 0:00:10]} Rab8 {[%emt 0:00:
17]} 18. Re1 {[%emt 0:00:13]} a5 {[%emt 0:00:14]} 19. a3 {[%emt 0:00:14]} a4 {
[%emt 0:00:11]} 20. Ba2 {[%emt 0:00:11]} Qd6 {[%emt 0:00:22]} 21. h3 {[%emt 0:
00:27]} Rbe8 {[%emt 0:00:22]} 22. b3 {[%emt 0:00:23]} axb3 {[%emt 0:00:12]} 23.
Bxb3 {[%emt 0:00:11]} b4 {[%emt 0:00:15]} 24. a4 {[%emt 0:00:16]} bxc3 {
[%emt 0:00:12]} 25. Ne5 {[%emt 0:00:18]} Nxe5 {[%emt 0:00:12]} 26. dxe5 {
[%emt 0:00:10]} Qe7 {[%emt 0:00:22]} 27. exf6 {[%emt 0:00:12]} Qxf6 {[%emt 0:
00:10]} 28. Bxd5 {[%emt 0:00:17]} Bxd5 {[%emt 0:00:16]} 29. Rxe8 {[%emt 0:00:
11]} Rxe8 {[%emt 0:00:16]} 30. Qxd5 {[%emt 0:00:13]} Rd8 {[%emt 0:00:15]} 31.
Qc4 {[%emt 0:00:17]} Kh7 {[%emt 0:00:15]} 32. Qxc7 {[%emt 0:00:30]} Rd2 {
[%emt 0:00:22]} 33. Rc1 {[%emt 0:00:23]} Qxf2+ {[%emt 0:00:11]} 34. Kh1 {
[%emt 0:00:16]} Qxg2# {[%emt 0:00:11] KeenOrangeTeeth won by checkmate} 0-1